Cogmind - Beta 14 *** ADVENTURER MODE // 2024.09.19 @ 02:28:23 Player: JD00 Result: Destroyed by Y-54 Guardian with Gatling Laser Performance ------------- Evolutions (0) 0 Regions Visited (3) 600 Robots Destroyed (24) 120 Value Destroyed (460) 460 Prototype IDs (0) 0 Alien Tech Used (0) 0 Bonus (0) 0 TOTAL SCORE: 1180 Bonus ------- None Cogmind --------- Core Integrity 0/250 Matter 233/300 Energy 100/100 System Corruption 2% Temperature Cool (6) Movement Core (100) Ox1 Location -7/Recycling Parts ------- > --- POWER (1) -------- (None) > --- PROPULSION (2) --- (None) > --- UTILITY (2) ------ Small Storage Unit Seismic Detector > --- WEAPON (2) ------- (None) > --- INVENTORY (8) ---- Light Treads Compact Wheel Small Matter Pod (50) Weight Redist. System Shrapnel Trap Peak State ------------ > --- POWER ------------ Light Ion Engine > --- PROPULSION ------- Light Treads Light Treads > --- UTILITY ---------- Small Storage Unit Seismic Detector > --- WEAPON ----------- Light Assault Rifle Light Assault Rifle > --- INVENTORY -------- Light Ion Engine Wheel Compact Wheel Compact Wheel Small Matter Pod Weight Redist. System Assault Rifle Plasma Cutter [Rating: 8] Favorites ----------- Power Light Ion Engine Engine Light Ion Engine Propulsion Light Treads Treads Light Treads Leg Aluminum Leg Wheel Compact Wheel Utility Small Storage Unit Device Seismic Detector Storage Small Storage Unit Weapon Light Assault Rifle Ballistic Gun Light Assault Rifle Launcher Grenade Launcher Special Weapon Plasma Cutter Build | -11 -10 -10 -7 ------- Run | Yrd Mat Sub Rec Slots Evolved . | . . . . Power . | . . . . Propulsion . | . . . . Utility . | . . . . Weapon . | . . . . Parts Attached 23 | 14 5 1 3 Power 3 | 1 1 . 1 Engine 3 | 1 1 . 1 Core . | . . . . Reactor . | . . . . Propulsion 10 | 8 . . 2 Treads 2 | 2 . . . Leg 3 | 3 . . . Wheel 5 | 3 . . 2 Hover . | . . . . Flight . | . . . . Utility 3 | 3 . . . Device 2 | 2 . . . Storage 1 | 1 . . . Processor . | . . . . Hackware . | . . . . Protection . | . . . . Artifact . | . . . . Weapon 7 | 2 4 1 . Energy Gun . | . . . . Energy Cannon . | . . . . Ballistic Gun 4 | 2 2 . . Ballistic Cannon . | . . . . Launcher 1 | . . 1 . Special Weapon 2 | . 2 . . Impact Weapon . | . . . . Slashing Weapon . | . . . . Piercing Weapon . | . . . . Special Melee Weapon . | . . . . Unidentified Prototypes . | . . . . Parts Lost 8 | . . 1 7 Power 2 | . . . 2 Propulsion 3 | . . . 3 Utility . | . . . . Weapon 3 | . . 1 2 Highest Loss Streak 6 | . . 1 6 To Critical Strikes . | . . . . Average Slot Usage (%) 98 | . 99 99 81 Engine 13 | . 14 14 10 Treads 27 | . 28 28 11 Device 14 | . 14 14 14 Storage 14 | . 14 14 14 Ballistic Gun 22 | . 26 14 10 Special Weapon 4 | . 1 13 . Peak Build Rating 8 | 7 8 8 7 Average Rating 7 | 5 7 7 5 On Entrance 5 | . 7 8 7 Naked Turns . | . . . . Heaviest Build 14 | 11 12 14 14 Greatest Support 40 | 40 40 40 40 Greatest Overweight (x) 1 | 1 . . . Average Overweight (x) . | . . . . Largest Inventory Capacity 8 | 8 8 8 8 Average Capacity 7 | 6 8 8 8 Most Carried 8 | 8 8 8 7 Average Carried 7 | 5 7 7 5 Final Capacity 8 | 8 8 8 8 Final Carried 8 | 8 8 7 5 Class Distribution -------------------- 98% | Mutant Dominant Class ---------------- Mutant | -10/Materials Mutant | -10/Subcaves Mutant | -7/Recycling Resources | -11 -10 -10 -7 ----------- Run | Yrd Mat Sub Rec Matter Collected 630 | 358 139 133 . Remotely 198 | 198 . . . Salvage Created 665 | 126 365 131 43 Parts 42 | 9 21 12 . Haulers Intercepted . | . . . . Recyclers Shooed 2 | . 2 . . Parts Field Recycled . | . . . . Retrieved Matter . | . . . . Parts Self-Destructed 19 | . . 19 . Prevented . | . . . . Kills | -11 -10 -10 -7 ------- Run | Yrd Mat Sub Rec Combat Hostiles Destroyed 16 | . 10 5 1 Guns 15 | . 10 5 . AOE 1 | . . . 1 Classes Destroyed 8 | 3 3 1 1 Worker 1 | 1 . . . Tunneler 2 | 2 . . . Recycler 2 | 1 1 . . Turret 2 | . . 2 . Watcher 1 | . 1 . . Swarmer 10 | . 5 5 . Grunt 5 | . 5 . . Sentry 1 | . . . 1 Best Kill Streak 4 | 2 2 4 1 Combat Bots Only 3 | . 2 3 1 Max Kills in Single Turn 2 | 1 2 1 1 Gunslinging 1 | . 1 . . Exploded 1 | . . . 1 Melee . | . . . . Uniques/NPCs Destroyed . | . . . . Combat | -11 -10 -10 -7 -------- Run | Yrd Mat Sub Rec Hostile Shots Fired 300 | . 52 92 156 Missed 133 | . 19 46 68 Damage Taken 1002 | . 243 253 506 Core 255 | . 51 49 155 Absorbed by Shields . | . . . . Ignored by Resistances 334 | . 80 84 170 Core Remaining (%) 100 | 100 . . . Volleys Fired 104 | 15 49 32 8 Largest 2 | 2 2 1 2 Hottest 50 | 40 40 20 50 Shots Fired 158 | 19 94 33 12 Gun 150 | 19 90 33 8 Cannon . | . . . . Launcher 4 | . . . 4 Special 4 | . 4 . . Kinetic 150 | 19 90 33 8 Thermal 4 | . 4 . . Explosive 4 | . . . 4 Electromagnetic . | . . . . Robot Hit Streak 23 | 7 22 23 9 Robot Miss Streak 2 | 2 2 2 1 Penetration Max . | . . . . Secondary Targets 1 | . 1 . . Max Gunslinging Chain 1 | . 1 . . Shots Hit Robots 114 | 14 70 21 9 Core Hits 51 | 8 28 11 4 Critical Kills . | . . . . Critical Parts Destroyed . | . . . . Critical Strikes . | . . . . Melee Attacks . | . . . . Impact . | . . . . Slashing . | . . . . Piercing . | . . . . Sneak Attacks . | . . . . Combat Hostiles . | . . . . Follow-up Attacks . | . . . . Damage Inflicted 1088 | 106 567 258 157 Guns 994 | 106 560 258 70 Cannons . | . . . . Explosions 87 | . . . 87 Melee . | . . . . Ramming 7 | . 7 . . Kinetic 994 | 106 560 258 70 Thermal . | . . . . Explosive 87 | . . . 87 Electromagnetic . | . . . . Impact . | . . . . Slashing . | . . . . Piercing . | . . . . Highest Corruption 2 | . 2 2 2 Average Corruption 1 | . 1 2 2 Corruption Purged . | . . . . Corruption Blocked . | . . . . Effects 24 | . 15 8 1 Message Errors 7 | . 4 3 . Matter Fused 2 | . 1 1 . Heat Flow Errors 2 | . 1 . 1 Energy Discharges 4 | . 3 1 . Parts Rejected 1 | . 1 . . Data Loss (minor) 3 | . 2 1 . Data Loss (major) 4 | . 3 1 . Misfires 1 | . . 1 . Overload Shots . | . . . . Overflow Damage . | . . . . Projectiles . | . . . . Explosions . | . . . . Melee . | . . . . Knockbacks . | . . . . Impact . | . . . . Kinetic . | . . . . Secondary . | . . . . Self-Inflicted Damage . | . . . . Shots . | . . . . Rammed 5 | . 4 . 1 Targets Rammed 5 | . 4 . 1 Kicked . | . . . . Crushed . | . . . . Highest Temperature 160 | . 151 . 160 Average Temperature 35 | . 30 . 41 Received Heat Transfer 459 | . 93 144 222 Siege Activations . | . . . . Robots Corrupted . | . . . . Combat Hostiles . | . . . . Parts Fried . | . . . . Impact Corruptions . | . . . . Robots Melted . | . . . . Combat Hostiles . | . . . . Parts Melted . | . . . . Heat Transferred . | . . . . Parts Sabotaged . | . . . . Parts Stolen . | . . . . Parts Stripped . | . . . . Power Chain Reactions . | . . . . Alert | -11 -10 -10 -7 ------- Run | Yrd Mat Sub Rec Peak Influence 150 | 20 150 . 95 Initial 66 | . 11 . 66 Average 44 | 10 46 . 62 Maximum Alert Level . | . . . . Low Security (%) 100 | 100 100 . 100 Level 1 . | . . . . Level 2 . | . . . . Level 3 . | . . . . Level 4 . | . . . . Level 5 . | . . . . High Security . | . . . . Max Security . | . . . . Squads Dispatched 2 | . 2 . . Investigation 2 | . 2 . . Extermination . | . . . . Reinforcement . | . . . . Assault . | . . . . Garrison . | . . . . Intercept . | . . . . Searches Triggered . | . . . . Construction Impeded . | . . . . Haulers Reinforced . | . . . . Active Scanning Responses . | . . . . Cargo Convoy Interrupts . | . . . . Stealth | -11 -10 -10 -7 --------- Run | Yrd Mat Sub Rec Distress Signals . | . . . . Communications Jammed . | . . . . Distress Signals . | . . . . Times Spotted 31 | . 18 9 4 Peak Tracking Total 4 | . 3 4 4 Tactical Retreats 4 | . 2 2 . Traps | -11 -10 -10 -7 ------- Run | Yrd Mat Sub Rec Traps Triggered 5 | . 5 . . Indirectly . | . . . . Trap Hack Attempts . | . . . . Triggered . | . . . . Disarmed 4 | . 4 . . Reprogrammed . | . . . . Reused . | . . . . Traps Extracted . | . . . . Installed . | . . . . Triggered . | . . . . Most Traps Carried 1 | . . 1 1 Machines | -11 -10 -10 -7 ---------- Run | Yrd Mat Sub Rec Machines Disabled 2 | . 2 . . Max in Single Turn 1 | . 1 . . Machines Repaired . | . . . . Machines Dismantled 2 | . 2 . . Machines Sabotaged . | . . . . Overloaded Fab Kills . | . . . . Hacking | -11 -10 -10 -7 --------- Run | Yrd Mat Sub Rec Machines Accessed 6 | . 6 . . Terminals 5 | . 5 . . Fabricators . | . . . . Repair Stations . | . . . . Recycling Units 1 | . 1 . . Scanalyzers . | . . . . Garrison Access . | . . . . Total Hacks 19 | . 19 . . Successful 9 | . 9 . . Failed 10 | . 10 . . Catastrophic 1 | . 1 . . Database Lockouts . | . . . . Manual 5 | . 5 . . Terminals 15 | . 15 . . Fabricators . | . . . . Repair Stations . | . . . . Recycling Units 4 | . 4 . . Scanalyzers . | . . . . Garrison Access . | . . . . Terminal Hacks 8 | . 8 . . Robot Analysis 1 | . 1 . . Level Access Points 1 | . 1 . . Unreport Threat 1 | . 1 . . Disarm Traps 1 | . 1 . . Dispatch Records 1 | . 1 . . Registered Components 1 | . 1 . . Registered Prototypes 1 | . 1 . . Zone Layout 1 | . 1 . . Fabricator Hacks . | . . . . Repair Station Hacks . | . . . . Recycling Unit Hacks . | . . . . Scanalyzer . | . . . . Garrison Access Hacks . | . . . . Unauthorized Hacks 1 | . 1 . . Terminals . | . . . . Fabricators . | . . . . Repair Stations . | . . . . Recycling Units 1 | . 1 . . Reject 1 | . 1 . . Scanalyzers . | . . . . Garrison Access . | . . . . Data Cores Recovered . | . . . . Used . | . . . . Hacking Detections 5 | . 5 . . Full Trace Events 3 | . 3 . . Feedback Events . | . . . . Feedback Blocked . | . . . . Robot Schematics Acquired . | . . . . Robots Built . | . . . . Authchips . | . . . . Time . | . . . . Total Robot Build Rating . | . . . . Part Schematics Acquired . | . . . . Parts Built . | . . . . Authchips . | . . . . Time . | . . . . Total Part Build Rating . | . . . . Parts Repaired . | . . . . Time . | . . . . Parts Recycled . | . . . . Recycled Matter . | . . . . Retrieved Matter . | . . . . Retrieved Components . | . . . . Parts Scanalyzed . | . . . . Part Schematics Acquired . | . . . . Parts Damaged . | . . . . Bothacking | -11 -10 -10 -7 ------------ Run | Yrd Mat Sub Rec Used RIF Installer . | . . . . Robots Hacked . | . . . . Non-combat . | . . . . Combat . | . . . . Robot Hacks Applied . | . . . . Relay Couplers Released . | . . . . Fabnet Peak Effective % . | . . . . Robots Rewired . | . . . . Allies Hacked . | . . . . Hacks Repelled . | . . . . Allies | -11 -10 -10 -7 -------- Run | Yrd Mat Sub Rec Total Allies . | . . . . Largest Group . | . . . . Highest-Rated Group . | . . . . Highest-Rated Ally . | . . . . Total Orders . | . . . . Ally Attacks . | . . . . Total Damage . | . . . . Kills . | . . . . Allies Corrupted . | . . . . Allies Melted . | . . . . Intel | -11 -10 -10 -7 ------- Run | Yrd Mat Sub Rec Robot Analysis Total 1 | . 1 . . Derelict Logs Recovered 1 | . . 1 . Drone Launches . | . . . . Drone Recoveries . | . . . . Exploration | -11 -10 -10 -7 ------------- Run | Yrd Mat Sub Rec Turns Passed 2696 | 168 1804 604 120 Spaces Moved 1314 | 94 808 333 79 Core 18 | 18 . . . Treads 1174 | 5 808 333 28 Legs 55 | 55 . . . Wheels 67 | 16 . . 51 Hover . | . . . . Flight . | . . . . Fastest Speed 50 | 50 160 160 90 Average Speed 154 | 113 160 160 119 Slowest Speed 190 | 190 160 160 160 Overloaded Moves . | . . . . Propulsion Burnouts . | . . . . Robots Hopped . | . . . . Cave-ins Triggered . | . . . . Exploration Rate (%) 27 | 5 74 18 11 Regions Visited 3 Branch Regions 2 Pre-discovered Areas . | . . . . Known Exits Taken . | . . . . Unknown Exits Taken 3 | 1 1 1 . Scrap Searched . | . . . . Spaces Dug . | . . . . Terrain Destroyed 30 | . . . 30 Melee . | . . . . Projectile . | . . . . AOE 30 | . . . 30 Terrain Rammed . | . . . . Walls Destroyed . | . . . . Machines Disabled . | . . . . Actions | -11 -10 -10 -7 --------- Run | Yrd Mat Sub Rec Total 1783 | 134 1184 373 92 Wait 285 | . 279 6 . Move 1311 | 93 807 332 79 Hop . | . . . . Pick Up 17 | 10 6 1 . Fast Attach 8 | 7 1 . . Attach 3 | . . 1 2 Detach . | . . . . Swap 12 | 7 4 . 1 Drop 10 | 2 7 1 . Fire 104 | 15 49 32 8 Melee . | . . . . Ram 1 | . . . 1 Kick . | . . . . Crush 4 | . 4 . . Escape Stasis . | . . . . Rewire 1 | . . . 1 Trap . | . . . . Miscellaneous 27 | . 27 . . Route ------- -11/Scrapyard -10/Materials (discovered 5 exits: *Mat x3 / [*Min] / [*Sub]) -10/Subcaves -7/Recycling History --------- Turn | Location | Event 43 | -11/Scrapyard | Discovered new exit (range 14) 169 | -11/Scrapyard | Entered Materials 241 | -10/Materials | Discovered new exit (range 14) 315 | -10/Materials | Build established: Mutant 321 | -10/Materials | Identified exit to Materials 1961 | -10/Materials | Discovered new exit (range 5) 1973 | -10/Materials | Entered Subcaves 2009 | -10/Subcaves | Learned Materials stockpile data 2208 | -10/Subcaves | A swath of the cavern ceiling suddenly collapsed 2243 | -10/Subcaves | Shifting Twisted Machinery released Mak. Spear 2427 | -10/Subcaves | Shifting Twisted Machinery released Shrapnel Trap 2501 | -10/Subcaves | Discovered new exit (range 13) 2577 | -10/Subcaves | Entered Recycling 2625 | -7/Recycling | Core integrity fell below 50% 2688 | -7/Recycling | Core integrity fell below 20% 2694 | -7/Recycling | Lost 6 parts (2p2n2w) 2697 | -7/Recycling | Destroyed by Y-54 Guardian with Gatling Laser Last Messages --------------- Autobeam fries itself beyond repair. Acquired 11 matter. Subatomizers dissect the Sub. Monowheel. LOCATION=UNKNOWN GOAL=ESCAPE System corrupted: Heat flow error (+178). Y-54 Guardian springs to life. Lgt. Treads destroyed. Lgt. Ion Engine destroyed. Y-54 Guardian destroyed. Grenade Launcher destroyed. Wheel destroyed. Lgt. Ion Engine destroyed. Assault Rifle destroyed. Attempting to rewire R-06 Scavenger. R-06 Scavenger is unpowered. Slammed into Y-54 Guardian. Com. Wheel broken. Destabilizing: Short circuit. Broken Com. Wheel destroyed. Map ----- +----------------------------------------------------+ | ?????????????????????????????????????????????????? | | ?????????????????????????????????????????????????? | | ?????????????????????????????????????????????????? | | ?????????????????????????????????????????????????? | | ?????????????????????????????????????????????????? | | ?????????????????????????????????????????????????? | | ?????????????????????????????????????????????????? | | ?????????????????????????????????????????????????? | | ?????????????????????????????????????????????????? | | ?????????????????????????????????????????????????? | | ?????????????????????????????????????????????????? | | ?????????????????????????????????????????????????? | | ?????????????????????????????????????????????????? | | ?????????????????????????????????????????????????? | | ?????????????????????????????????????????????????? | | ???????????????????????????###???????????????????? | | ??????????????????????????? ???????????????????? | | ??????????????????????????? ???????????????????? | | ??????????????????????????? ???????????????????? | | ????????????????#####+###### #???????????????????? | | ????????????????# ## #???????????????????? | | ????????????????# ## #???????????????????? | | ????????????????# ## #???????????????????? | | ????????????????# ## #???????????????????? | | ????????????????# Y## #??????????????+#???? | | ????????????????# @Y #?????????????? ????? | | ????????????????# ## #?????????####? ????? | | ????????????????# ## #????#????# ? ????? | | ????????????????##r######### #????# #### # ????? | | ?????????????????###???????# #????? ????? | | ???????????????????????????# #?????? ????? | | ???????????????????????????# #???????# #????? | | ???????????????????????????# #????????# #??? | | ???????????????????????????# ######## #???? | | ???????????????????????????# % #???? | | ???????????????????????????####### ## !!! #???? | | ?????????????????????????????????# #??#!??# #???? | | ?????????????????????????????????# ########+#????? | | ?????????????????# ?????????????# # ##???? | | ?????????????????# ############ # #???? | | ?????????????????# + ##???? | | ?????????????????# ### #????? | | ?????????????????# #?# #????? | | ?????????????????# #?# #????? | | ?????????????????# #?# #????? | | ?????????????????# #?# #????? | | ?????????????????# #?# #????? | | ?????????????????#################?##########????? | | ?????????????????????????????????????????????????? | | ?????????????????????????????????????????????????? | +----------------------------------------------------+ Best States ------------- Heat Dissipation 25 Energy Generation 10 Energy Capacity 125 Matter Stores 300 Matter Capacity 300 Sight Range 16 Terrain Scan Density 10 Resistance: KI 20 Resistance: TH 20 Resistance: EX 20 Resistance: EM 20 Resistance: I 20 Resistance: S 20 Resistance: P 20 Evasion (%) 55 Recoil Reduction 2 Offensive Hacking 10 Item Schematics ----------------- None Robot Schematics ------------------ None Fabricated ------------ Nothing Alien Tech Used ----------------- None Achievements -------------- None Challenges ------------ None Game ------ Seed CoilLegChip Manual? 0 Play Time 00:47:56 Cumulative 8.9 hours Start 2024.09.19 @ 01:36:15 End 2024.09.19 @ 02:28:23 Sessions 1 Manual Loads 0 Difficulty Adventurer Special Mode None Game No. 12 Rogue 0 Adventurer 12 Explorer 0 Win Type - Total 0 Types 0/0/0/0/0/0/0/0/0 Lore% 11 Gallery% 10 Achievement% 14 Wizard Run 0 Options --------- Layout 1 ASCII 1 Keyboard 1 Movement Arrows Keybinds 0 Fullscreen 2 Font 24/Terminus Map View 50x35 Zoom Use 0% Tactical HUD 0 Map Filters NONE Filters NONE Steam 1 RUN: 2087beca-c086-4964-a5f2-fc9c32f6b351